bitfinex/quotes_ETHUSD_20220105
["timestamp","ask_amount","ask_price","bid_price","bid_amount"]
[1641346139554,1.34760407,3803.4,3802.9,0.66100054]
[1641346139753,1.34760407,3803.4,3803.0,0.00284212]
[1641346139953,1.64760407,3803.4,3803.0,0.00284212]
[1641346140153,0.6576,3803.3,3803.0,0.00284212]
[1641346140754,0.6576,3803.3,3803.0,0.66041212]
[1641346141158,0.6576,3803.3,3803.1,0.00227369]
[1641346142996,0.3,3803.4,3803.1,0.00227369]
[1641346143199,0.3,3803.4,3803.1,0.65978369]
[1641346143399,0.3,3803.5,3803.1,0.65978369]
[1641346143598,0.30113685,3803.7,3803.1,0.65978369]
[1641346144999,0.95864685,3803.7,3803.1,0.65978369]
[1641346147548,0.65864685,3803.7,3803.1,0.65978369]
[1641346147750,0.00113685,3803.7,3803.1,0.65978369]
[1641346148648,0.00113685,3803.7,3803.2,0.65744]
[1641346148848,0.00113685,3803.7,3803.3,0.65745]
[1641346149049,0.00113685,3803.7,3803.3,0.65858684]
[1641346149905,0.00113685,3803.7,3803.5,0.6574]
[1641346150203,0.00113685,3803.7,3803.5,1.31474]
[1641346150605,0.00113685,3803.7,3803.5,1.97207]
[1641346151005,0.00113685,3803.7,3803.6,6.17808683]
[1641346151207,0.00113685,3803.7,3803.6,1.22808683]
[1641346151807,3.07343685,3804.8,3804.1,1.20964592]
[1641346152107,0.00568423,3804.7,3804.4,0.65736]
[1641346152508,0.00511581,3804.6,3804.4,0.65736]
[1641346152908,0.00454739,3804.5,3804.4,0.65736]
[1641346156760,0.0149422,3804.5,3804.4,0.65736]
[1641346160617,0.6149422,3804.5,3804.1,1.31465]
[1641346161054,0.00397896,3804.4,3804.1,1.31465]
[1641346161453,0.00341054,3804.3,3804.1,1.31465]
[1641346161854,0.00284212,3804.2,3804.1,1.31465]
[1641346162356,0.01321472,3804.2,3804.1,1.31465]
[1641346170150,0.01277993,3804.6,3804.1,19.10346284]
[1641346170350,0.0573,3806.1,3804.3,16.03718]
[1641346170557,0.0573,3806.1,3805.8,1.0136557]
[1641346170752,8.7963,3806.4,3805.8,0.8284]
[1641346170753,0.65709,3806.3,3805.8,0.8284]
[1641346171155,0.66902689,3806.3,3805.8,0.8284]
[1641346171756,0.66902689,3806.3,3805.7,1.02141]
[1641346172119,0.66902689,3806.3,3805.7,0.65711]
[1641346172906,0.96902689,3806.3,3805.7,0.65711]
[1641346175111,0.65713,3806.1,3805.7,0.65711]
[1641346175312,0.31193689,3806.3,3805.7,0.65711]
[1641346175512,3.0654,3806.6,3805.7,0.65711]
[1641346175513,0.01023162,3806.0,3805.7,0.65711]
[1641346175714,0.01136847,3806.2,3805.7,0.65711]
[1641346175968,0.0096632,3805.9,3805.7,0.65711]
[1641346176169,0.01080004,3806.1,3805.7,0.65711]
[1641346176369,0.00909477,3805.8,3805.7,0.65711]
[1641346176568,0.01023162,3806.0,3805.7,2.16805533]
[1641346176769,0.00909477,3805.8,3805.7,2.16805533]
[1641346176970,0.0096632,3805.9,3805.7,2.16805533]
[1641346177170,0.00909477,3805.8,3805.7,2.16805533]
[1641346178570,0.00909477,3805.8,3805.7,2.82511533]
[1641346182509,0.3,3806.8,3805.8,4.95]
[1641346182510,0.27187466,3806.8,3805.8,4.95]
[1641346182709,0.0583,3806.9,3806.4,0.65691]
[1641346182908,3.232,3807.2,3806.5,2.17738893]
[1641346183109,3.232,3807.2,3806.7,1.40929563]
[1641346183365,6.82677306,3807.6,3806.7,1.40929563]
[1641346183366,0.00738951,3807.1,3806.7,1.40929563]
[1641346183757,0.00682108,3807.0,3806.7,1.40929563]
[1641346183957,0.00682108,3807.0,3806.8,0.65691]
[1641346184158,0.00625266,3806.9,3806.8,0.65691]
[1641346184563,0.00625266,3806.9,3806.7,2.50519468]
[1641346184960,0.00568424,3806.8,3806.7,2.50519468]
[1641346185961,0.00568424,3806.8,3806.7,1.40929563]
[1641346186361,0.00568424,3806.8,3806.7,1.38933542]
[1641346186762,0.00568424,3806.8,3805.8,12.03530697]
[1641346187233,0.382,3807.1,3806.1,0.65704]
[1641346187234,0.65704,3806.6,3806.1,0.65704]
[1641346187637,0.00397897,3806.5,3806.1,0.65704]
[1641346187839,0.00397897,3806.5,3805.2,3.6692]
[1641346188037,0.6,3806.6,3805.7,0.6571]
[1641346188038,0.68541054,3806.4,3805.7,0.6571]
[1641346188239,0.382,3806.3,3805.7,0.6571]
[1641346188436,0.68484212,3806.3,3805.7,0.6571]
[1641346188638,0.0022737,3806.2,3805.7,0.6571]
[1641346189038,0.00170527,3806.1,3805.7,0.6571]
[1641346189439,0.00113685,3806.0,3805.7,0.6571]
[1641346189839,0.30170527,3806.1,3805.7,0.6571]
[1641346190241,0.00113685,3806.0,3805.7,0.6571]
[1641346191251,0.30113685,3806.0,3805.7,0.6571]
[1641346191456,0.00113685,3806.0,3805.7,0.6571]
[1641346191654,0.30113685,3806.0,3805.7,0.6571]
[1641346193555,0.01026568,3805.9,3805.7,0.6571]
[1641346195605,0.01026568,3805.9,3805.5,1.31416]
[1641346196007,0.01026568,3805.9,3805.6,0.00113685]
[1641346196611,0.01026568,3805.9,3805.6,0.65825685]
[1641346201959,0.01026568,3805.9,3805.6,0.00113685]
[1641346203204,0.01026568,3805.9,3805.6,2.50797788]
[1641346203402,0.01026568,3805.9,3805.6,3.16509788]
[1641346203604,0.01026568,3805.9,3805.6,1.90959087]
[1641346204007,0.01026568,3805.9,3805.6,0.65825685]
[1641346205004,0.01026568,3805.9,3805.6,0.65712]
[1641346205602,0.01026568,3805.9,3805.6,1.97284284]
[1641346206051,0.01026568,3805.9,3805.6,0.65712]
[1641346206253,0.66741568,3805.9,3805.6,0.65712]
[1641346209259,0.66741568,3805.9,3805.8,0.13133634]
[1641346209458,0.66741568,3805.9,3805.8,0.26267268]
[1641346211904,0.01026568,3805.9,3805.8,0.26267268]
[1641346212704,0.01026568,3805.9,3805.8,2.60523654]
[1641346212903,0.01026568,3805.9,3805.8,0.26267268]
[1641346215858,0.66740568,3805.9,3805.8,0.26267268]
[1641346216062,0.96740568,3805.9,3805.8,0.26267268]
[1641346217522,0.96740568,3805.9,3805.8,0.21267268]
[1641346217720,0.96740568,3805.9,3805.8,0.13133634]
[1641346217921,1.26740568,3805.9,3805.8,0.21267268]
[1641346218825,3.6164101,3805.9,3805.8,0.21267268]
[1641346220326,3.9984101,3805.9,3805.8,0.21267268]
[1641346221356,4.06096932,3805.9,3805.8,0.21267268]
[1641346223061,6.4728865,3805.9,3805.8,0.21267268]
[1641346223663,4.06096932,3805.9,3805.8,0.21267268]
[1641346227115,3.46096932,3805.9,3805.8,0.21267268]
[1641346227918,1.1119649,3805.9,3805.8,0.21267268]
[1641346228351,1.4119649,3805.9,3805.8,0.21267268]
[1641346228552,1.7119649,3805.9,3805.8,0.21267268]
[1641346228759,4.06503718,3805.9,3805.8,0.21267268]
[1641346229258,1.7119649,3805.9,3805.8,0.21267268]
[1641346230259,4.04917073,3805.9,3805.8,0.21267268]
[1641346233930,5.22950019,3805.9,3805.8,0.21267268]
[1641346234123,6.22950019,3805.9,3805.8,0.21267268]
[1641346234322,6.22950019,3805.9,3804.5,5.12369]
[1641346234323,4.45,3805.8,3804.4,3.9146]
[1641346234525,0.65741,3804.8,3804.3,0.65739]
[1641346234723,0.65741,3804.8,3804.7,0.00625266]
[1641346234924,1.25741,3804.8,3804.7,0.00625266]
[1641346235523,0.95741,3804.8,3804.5,0.65737]
[1641346235966,0.95741,3804.8,3804.6,0.00682108]
[1641346237869,0.3,3804.8,3804.6,0.00682108]
[1641346238068,0.95731,3805.0,3804.6,0.00682108]
[1641346238470,0.95731,3805.0,3804.7,0.65731]
[1641346238872,0.95731,3805.0,3804.8,0.00568423]
[1641346241312,0.3,3805.0,3804.8,0.00568423]
[1641346241611,0.3,3805.1,3804.8,0.00568423]
[1641346241813,0.3,3805.2,3804.8,0.66293423]
[1641346242012,0.39449554,3805.7,3804.8,0.66293423]
[1641346242013,0.3,3805.3,3804.8,0.66293423]
[1641346242211,0.0103807,3805.0,3804.9,0.00511581]
[1641346242611,0.0103807,3805.0,3804.9,1.39171066]
[1641346243958,0.0103807,3805.0,3804.9,4.94171066]
[1641346244156,0.0103807,3805.0,3804.9,20.32171066]
[1641346244961,0.0103807,3805.0,3804.9,16.77171066]
[1641346245160,0.07290185,3805.0,3804.9,16.77171066]
[1641346248213,0.01249554,3805.7,3805.1,15.38]
[1641346248415,0.01249554,3805.7,3805.3,1.31404]
[1641346248615,0.01249554,3805.7,3805.3,0.65702]
[1641346248816,0.01249554,3805.7,3805.4,0.00227369]
[1641346249213,9.554e-05,3805.7,3805.5,1.33097522]
[1641346249414,9.554e-05,3805.7,3805.6,15.38]
[1641346249613,2.40881284,3807.1,3805.8,0.65694]
[1641346249614,0.65696,3807.0,3805.8,0.65694]
[1641346249816,0.65696,3807.0,3806.3,0.65694]
[1641346250014,0.00682108,3807.0,3806.0,0.2179]
[1641346250714,0.00682108,3807.0,3806.7,1.16215952]
[1641346250968,0.00682108,3807.0,3806.7,0.65694]
[1641346251375,0.0500908,3806.9,3806.7,0.65694]
[1641346251671,0.00568424,3806.8,3806.7,0.65694]
[1641346254074,0.66267424,3806.8,3806.4,2.74928635]
[1641346254273,0.66267424,3806.8,3805.9,4.846]
[1641346254474,0.66267424,3806.8,3805.9,1.202]
[1641346254475,0.00511581,3806.7,3805.9,1.202]
[1641346254910,0.00454739,3806.6,3805.9,1.202]
[1641346255311,0.65706,3806.4,3806.2,0.65706]
[1641346255713,0.00284212,3806.3,3806.2,0.65706]
[1641346260462,0.00284212,3806.3,3806.2,0.45706]
[1641346266564,0.00284212,3806.3,3805.9,2.51604]
[1641346266766,0.00284212,3806.3,3805.9,1.31404]
[1641346266767,0.65993212,3806.3,3805.9,1.31404]
[1641346266964,0.0022737,3806.2,3805.9,1.31404]
[1641346267363,0.00170527,3806.1,3805.9,1.31404]
[1641346267764,0.00113685,3806.0,3805.9,1.31404]
[1641346267967,0.01153661,3806.0,3805.9,1.31404]
[1641346274564,0.05006909,3806.2,3805.9,1.31404]
[1641346274961,0.65712,3806.1,3805.9,1.31404]
[1641346276361,0.95712,3806.1,3805.9,1.31404]
[1641346277419,0.65714,3806.0,3805.7,0.65714]
[1641346277718,2.47502217,3805.9,3805.6,0.00113685]
[1641346277917,2.47502217,3805.9,3805.8,0.00113685]
[1641346278117,2.47502217,3805.9,3805.7,0.00170527]
[1641346278418,2.47502217,3805.9,3805.0,0.06252115]
[1641346278419,0.65727,3805.5,3805.1,0.00511581]
[1641346278616,3.00860089,3805.4,3805.1,0.00511581]
[1641346278817,3.30860089,3805.4,3805.1,0.00511581]
[1641346279020,0.95727,3805.4,3805.1,0.00511581]
[1641346280017,0.65727,3805.3,3805.1,0.00511581]
[1641346283865,1.3145501,3805.3,3805.1,0.00511581]
[1641346284708,4.61415282,3805.2,3805.1,0.00511581]
[1641346284909,5.59779384,3805.2,3805.1,0.00511581]
[1641346285118,4.499,3805.2,3805.1,0.00511581]
[1641346285314,6.53002092,3805.2,3805.1,0.00511581]
[1641346287015,9.08277684,3805.2,3805.1,0.00511581]
[1641346287917,6.88277684,3805.2,3805.1,0.00511581]
[1641346290670,5.58277684,3805.2,3805.1,0.00511581]
[1641346290872,1.03002092,3805.2,3805.1,0.00511581]
[1641346291074,0.382,3805.2,3805.1,0.00511581]
[1641346292111,0.682,3805.2,3805.1,0.00511581]
[1641346293913,0.69226752,3805.2,3805.1,0.00511581]
[1641346295872,2.99990235,3805.2,3805.1,0.00511581]
[1641346296070,3.75,3805.0,3804.4,0.015]
[1641346296273,2.0,3804.7,3804.4,0.0001]
[1641346296469,0.382,3804.6,3804.5,0.00341054]
[1641346296670,1.55524844,3804.6,3804.5,0.00341054]
[1641346296871,8.24830448,3804.5,3804.4,0.0001]
[1641346297070,9.11930448,3804.5,3804.4,0.0001]
[1641346297271,10.41930448,3804.5,3804.4,0.0001]
[1641346297470,1.9729457,3804.3,3804.0,0.07018927]
[1641346297671,1.42389309,3804.1,3804.0,0.07018927]
[1641346297871,3.13089309,3804.1,3804.0,0.07018927]
[1641346298374,3.78262937,3804.1,3804.0,0.07018927]
[1641346298572,1.107,3804.1,3804.0,0.07018927]
[1641346299173,0.382,3804.1,3804.0,0.07018927]
[1641346299814,0.682,3804.1,3804.0,0.07018927]
[1641346301317,0.73197091,3804.1,3804.0,0.07018927]
[1641346309518,3.08649131,3804.1,3804.0,0.07018927]
[1641346312564,0.73197091,3804.1,3804.0,0.07018927]
[1641346313866,0.34997091,3804.1,3804.0,0.07018927]
[1641346314069,0.04997091,3804.1,3804.0,0.07018927]
[1641346315006,0.04997091,3804.1,3804.0,1.49476769]
[1641346317010,0.04997091,3804.1,3804.0,0.07018927]
[1641346317413,0.01235651,3804.5,3804.0,0.07018927]
[1641346317612,0.01235651,3804.5,3804.1,0.65739]
[1641346317812,0.01235651,3804.5,3804.1,0.6596637]
[1641346318214,0.65743,3804.4,3804.1,0.6596637]
[1641346318463,0.95743,3804.4,3804.1,0.6596637]
[1641346318864,0.95743,3804.4,3804.1,0.0022737]
[1641346318865,1.25743,3804.4,3804.1,0.0022737]
[1641346319667,0.65751,3804.3,3804.1,0.0022737]
[1641346320870,5.282,3804.2,3803.7,0.45502472]
[1641346321073,5.282,3804.2,3802.7,3.7004]
[1641346321074,10.4175384,3804.2,3802.7,3.7004]
[1641346321269,0.65754,3803.8,3802.7,1.31521]
[1641346321472,1.3153955,3803.5,3802.0,1.245]
[1641346321669,0.6577648,3802.8,3802.7,6.14]
[1641346321874,2.36093912,3802.8,3802.7,6.14]
[1641346322115,1.5288648,3802.8,3802.7,6.14]
[1641346322521,1.56858221,3802.8,3802.7,6.14]
[1641346322720,2.22635221,3802.8,3802.7,6.14]
[1641346323922,3.41556327,3802.8,3802.7,6.14]
[1641346324123,4.9316998,3802.8,3802.7,6.14]
[1641346325429,4.94197379,3802.8,3802.7,6.14]
[1641346326264,6.94197379,3802.8,3802.7,6.14]
[1641346327867,7.24197379,3802.8,3802.7,6.14]
[1641346328667,6.98188782,3802.8,3802.7,6.14]
[1641346330912,4.27654023,3802.8,3802.2,0.65775]
[1641346331111,4.27654023,3802.8,3802.1,0.01136847]
[1641346331112,0.3,3802.7,3802.4,0.65773]
[1641346331514,0.3,3802.7,3802.5,0.00909477]
[1641346331712,0.05018802,3802.8,3802.5,0.00909477]
[1641346333963,0.05018802,3802.8,3802.4,2.80964361]
[1641346334366,0.00113684,3802.7,3802.4,0.61682477]
[1641346334665,0.00113684,3802.7,3802.4,2.77734872]
[1641346335465,0.00113684,3802.8,3802.5,4.05]
[1641346335668,0.00113684,3802.8,3802.6,2.15876314]
[1641346337412,0.00113684,3802.8,3802.5,0.00113684]
[1641346339114,0.382,3802.7,3802.5,0.00113684]
[1641346339314,0.682,3802.7,3802.5,0.00113684]
[1641346340970,0.657761,3802.6,3802.3,0.00227369]
[1641346341370,0.3,3802.5,3802.3,0.00227369]
[1641346341970,0.65778,3802.5,3802.3,0.00227369]
[1641346343170,0.95778,3802.5,3802.3,0.00227369]
[1641346345214,0.03191495,3802.4,3802.3,0.00227369]
[1641346346513,0.03191495,3802.4,3802.1,0.00341054]
[1641346347817,0.65778,3802.5,3802.1,0.00341054]
[1641346348013,0.65778,3802.5,3802.2,0.65776]
[1641346348462,0.65778,3802.5,3802.3,0.00227369]
[1641346349266,0.95778,3802.5,3802.3,0.00227369]
[1641346349866,1.33978,3802.5,3802.3,0.00227369]
[1641346350873,0.03076226,3802.4,3802.3,0.00227369]
[1641346351075,0.04103718,3802.4,3802.3,0.00227369]
[1641346366064,1.6155191,3802.5,3802.3,0.00227369]
[1641346367915,0.03076224,3802.4,3802.3,0.00227369]
[1641346371965,1.36606162,3802.5,3802.3,0.00227369]
[1641346373568,0.95774,3802.5,3802.3,0.00227369]
[1641346373769,0.03076223,3802.4,3802.3,0.00227369]
[1641346377715,0.94397597,3802.5,3802.3,0.00227369]
[1641346378362,0.94397597,3802.5,3802.2,0.65776]
[1641346379367,0.382,3802.7,3802.3,2.15774087]
[1641346379368,0.65769,3802.7,3802.3,2.15774087]
[1641346379574,4.52146651,3803.2,3802.3,2.15774087]
[1641346379767,0.03076267,3802.4,3802.3,2.15774087]
[1641346380168,0.03076267,3802.4,3802.3,2.16001456]
[1641346381873,0.03076267,3802.4,3802.3,0.00227369]
[1641346382530,1.86567428,3802.9,3802.3,0.00227369]
[1641346382734,2.16567428,3802.9,3802.4,1.31532]
[1641346382933,2.16567428,3802.9,3802.4,3.43029992]
[1641346383134,2.16567428,3802.9,3802.5,0.00113684]
[1641346384638,0.3,3802.9,3802.6,0.65766]
[1641346385034,0.3022737,3803.1,3802.6,0.65766]
[1641346385435,0.00170527,3803.0,3802.6,0.65766]
[1641346385870,0.00113685,3802.9,3802.6,0.65766]
[1641346386272,0.65935527,3803.0,3802.6,0.65766]
[1641346386677,0.00113685,3802.9,3802.6,0.65766]
[1641346389077,0.65879685,3802.9,3802.6,0.65766]
[1641346389478,0.95879685,3802.9,3802.6,0.65766]
[1641346391329,0.30113685,3802.9,3802.6,0.65766]
[1641346391529,0.65768,3802.8,3802.6,0.65766]
[1641346397520,0.66795395,3802.8,3802.6,0.65766]
[1641346403677,0.40967286,3802.8,3802.6,0.65766]
[1641346406723,0.40967286,3802.8,3802.5,0.00113684]
[1641346406724,1.44937076,3802.8,3802.5,0.00113684]
[1641346406924,0.65785,3802.7,3802.5,0.00113684]
[1641346407129,3.432,3802.6,3802.2,0.00284211]
[1641346407324,3.432,3802.6,3802.1,0.00341054]
[1641346407325,0.3,3802.5,3802.1,0.00341054]
[1641346407525,0.382,3802.4,3801.8,0.00511581]
[1641346407725,1.28091972,3802.2,3801.8,0.00511581]
[1641346407925,0.382,3802.1,3801.8,0.00511581]
[1641346408130,0.65786,3802.0,3801.8,0.66297581]
[1641346408381,1.61571,3802.2,3801.8,0.66297581]
[1641346408382,0.382,3801.9,3801.8,0.66297581]
[1641346408580,0.682,3801.9,3801.8,0.65786]
[1641346408987,0.3,3801.9,3801.8,0.65786]
[1641346409385,0.65779,3802.2,3801.8,0.65786]
[1641346409585,0.65779,3802.2,3801.9,0.6578]
[1641346409986,0.65779,3802.2,3801.9,0.66234738]
[1641346410185,0.65779,3802.2,3801.9,0.6578]
[1641346410387,0.65779,3802.2,3802.0,0.00397896]
[1641346410586,1.66988606,3802.1,3802.0,0.00397896]
[1641346410789,1.66988606,3802.1,3801.9,0.61177896]
[1641346413021,0.65789,3801.9,3801.7,1.31568]
[1641346413227,0.95789,3801.9,3801.7,1.31568]
[1641346413427,0.95789,3801.9,3801.8,0.00113685]
[1641346414628,1.33989,3801.9,3801.8,0.00113685]
[1641346415026,0.682,3801.9,3801.8,0.00113685]
[1641346420521,0.682,3801.9,3801.7,1.26681685]
[1641346421324,0.52830871,3801.9,3801.7,1.26681685]
[1641346421525,0.382,3801.9,3801.7,1.26681685]
[1641346422729,1.03984,3801.9,3801.7,1.26681685]
[1641346423126,1.33984,3801.9,3801.7,1.26681685]
[1641346423571,0.01027651,3801.8,3801.7,1.26681685]
[1641346423775,0.39227651,3801.8,3801.7,1.26681685]
[1641346430426,0.39227651,3801.8,3801.7,1.21681685]
[1641346433071,0.11214491,3801.8,3801.7,1.21681685]
[1641346434272,2.38922807,3801.8,3801.7,1.21681685]
[1641346434472,2.49440843,3801.8,3801.7,1.21681685]
[1641346434719,1.3158387,3801.7,3801.4,0.65792]
[1641346434918,1.6978387,3801.7,3801.4,0.65792]
[1641346435123,1.6978387,3801.7,3801.5,0.00170527]
[1641346435124,0.3,3801.6,3801.5,0.00170527]
[1641346435523,0.1777382,3801.2,3800.3,1.31569]
[1641346435722,0.1777382,3801.2,3799.6,6.14]
[1641346435723,0.6581,3800.6,3800.1,0.01296021]
[1641346435924,0.382,3800.5,3800.4,0.00625266]
[1641346436124,5.45219998,3800.5,3800.4,0.00625266]
[1641346436526,5.75219998,3800.5,3800.4,0.00625266]
[1641346437925,8.08120766,3800.5,3800.4,0.00625266]
[1641346439278,0.65816,3800.1,3799.7,0.01023162]
[1641346439475,0.382,3800.0,3799.7,0.01023162]
[1641346439678,0.682,3800.0,3799.6,7.41653162]
[1641346439879,3.62934052,3800.0,3799.8,0.65817]
[1641346440077,2.39781894,3799.9,3799.6,6.14]
[1641346440277,0.382,3799.8,3799.6,6.14]
[1641346440475,0.382,3799.7,3799.6,6.14]
[1641346440676,0.682,3799.7,3799.4,1.36916577]
[1641346441081,0.682,3799.7,3799.5,0.00113685]
[1641346448688,0.382,3799.7,3799.5,0.00113685]
[1641346449288,0.39228231,3799.7,3799.5,0.00113685]
[1641346451230,0.00170527,3800.0,3799.6,4.9]
[1641346451429,0.00170527,3800.0,3799.9,20.29275941]
[1641346451727,0.5597382,3801.2,3800.0,4.9]
[1641346451926,0.5597382,3801.2,3800.8,1.39158034]
[1641346452126,0.5597382,3801.2,3800.3,1.97361]
[1641346452127,0.00625266,3801.1,3800.3,1.97361]
[1641346452429,0.00568424,3801.0,3800.6,1.31583]
[1641346452826,0.234022,3801.2,3800.6,1.31583]
[1641346453227,0.234022,3801.2,3800.9,0.65796]
[1641346453228,0.00113685,3801.1,3800.9,0.65796]
[1641346457921,0.38313685,3801.1,3800.9,0.65796]
[1641346458724,0.11554776,3801.1,3800.9,0.65796]
[1641346465627,0.77354776,3801.1,3800.9,0.65796]
[1641346469105,5.84454776,3801.1,3800.7,0.00113685]
[1641346469405,1.3161964,3800.9,3800.7,0.00113685]
[1641346469606,1.34791877,3800.7,3800.5,0.00341054]
[1641346469805,0.382,3800.6,3800.4,0.65809]
[1641346475978,0.682,3800.6,3800.4,0.65809]
[1641346481838,0.382,3800.6,3800.4,0.65809]
[1641346482935,0.382,3800.6,3800.5,2.09912776]
[1641346483137,0.382,3800.6,3800.4,0.65809]
[1641346488325,1.3431,3800.6,3800.2,1.31612]
[1641346488734,2.0,3800.4,3800.3,0.00454739]
[1641346488930,0.382,3800.4,3800.3,0.00454739]
[1641346504131,0.382,3800.4,3800.3,2.08645292]
[1641346504330,0.382,3800.4,3800.3,0.00454739]
[1641346504533,0.382,3800.4,3800.3,2.08872293]
[1641346504730,0.382,3800.4,3800.3,0.00454739]
[1641346509306,0.39228039,3800.4,3800.3,0.00454739]
[1641346511326,2.67586755,3800.4,3800.3,0.00454739]
[1641346511526,2.97586755,3800.4,3800.3,0.00454739]
[1641346511729,8.40504775,3800.4,3800.2,0.00511581]
[1641346511928,3.04328212,3800.3,3800.2,0.00511581]
[1641346512128,3.72528212,3800.3,3800.2,0.00511581]
[1641346512527,4.98091762,3800.3,3800.2,0.00511581]
[1641346514774,4.99119828,3800.3,3800.2,0.00511581]
[1641346515574,6.29119828,3800.3,3800.2,0.00511581]
[1641346515774,6.29119828,3800.3,3799.6,0.00852635]
[1641346515775,0.65824,3800.0,3799.6,0.00852635]
[1641346515974,2.74546897,3799.9,3799.5,0.00909478]
[1641346516174,3.04546897,3799.9,3799.5,0.00909478]
[1641346516374,1.36585978,3799.6,3799.5,0.00909478]
[1641346516574,0.382,3799.6,3799.5,0.00909478]
[1641346516773,0.682,3799.6,3799.5,0.00909478]
[1641346520331,0.69228255,3799.6,3799.5,0.00909478]
[1641346521476,0.39228255,3799.6,3799.5,0.00909478]
[1641346522881,0.69228255,3799.6,3799.5,0.00909478]
[1641346526732,5.46328255,3799.6,3799.5,0.00909478]
[1641346526932,5.76328255,3799.6,3799.5,0.00909478]
[1641346527133,2.0,3799.5,3799.2,0.01080005]
[1641346527331,2.0,3799.5,3798.5,2.31058932]
[1641346527332,5.81139,3799.4,3798.6,0.01421059]
[1641346527533,0.6916678,3799.1,3798.6,0.01421059]
[1641346527732,0.682,3799.0,3798.6,0.01421059]
[1641346527939,1.16169284,3798.8,3798.5,0.67319901]
[1641346528132,1.16169284,3798.8,3798.4,0.01534743]
[1641346528133,0.382,3798.7,3798.4,0.01534743]
[1641346528378,1.04048,3798.7,3798.6,0.01421059]
[1641346528577,0.3,3798.6,3798.4,0.01534743]
[1641346528777,1.04048,3798.5,3797.9,0.01818955]
[1641346529379,1.08848375,3798.4,3797.8,0.01875798]
[1641346529581,1.040472,3798.3,3797.9,1.31691]
[1641346529780,1.0756846,3798.3,3797.9,1.31691]
[1641346529981,0.3,3798.2,3798.0,0.01762113]
[1641346530178,0.382,3798.1,3798.0,0.01762113]
[1641346532326,0.382,3798.1,3798.0,1.08869171]
[1641346532525,0.382,3798.1,3798.0,3.18997063]
[1641346532727,0.382,3798.1,3798.0,1.08869171]
[1641346532925,0.682,3798.1,3798.0,1.08869171]
[1641346533129,0.682,3798.1,3798.0,3.2016082]
[1641346533325,0.682,3798.1,3798.0,1.08869171]
[1641346533525,0.682,3798.1,3798.0,3.17009424]
[1641346534334,0.682,3798.1,3798.0,0.01762113]
[1641346534530,0.682,3798.1,3797.9,1.28453113]
[1641346535131,0.982,3798.1,3797.9,1.28453113]
[1641346535331,1.1955,3798.1,3797.8,0.65845]
[1641346535531,2.11671756,3798.1,3797.8,0.65845]
[1641346535885,1.1955,3798.1,3797.8,0.65845]
[1641346536481,0.982,3798.1,3797.8,0.65845]
[1641346537484,1.64051,3798.1,3797.8,0.65845]
[1641346537883,1.64051,3798.1,3797.6,7.45701]
[1641346538085,0.682,3798.1,3797.6,7.45701]
[1641346538284,0.382,3798.1,3797.7,0.00170527]
[1641346538690,0.382,3798.1,3797.7,2.08843915]
[1641346539087,0.382,3798.1,3797.8,0.00113685]
[1641346539486,0.682,3798.1,3797.8,0.00113685]
[1641346539725,0.682,3798.1,3797.8,0.65958685]
[1641346540430,0.682,3798.1,3797.9,1.09186546]
[1641346540630,0.682,3798.1,3798.0,2.05864303]
[1641346540830,0.382,3798.1,3798.0,2.05864303]
[1641346541135,0.01235651,3798.5,3798.2,0.65827]
[1641346541333,0.01235651,3798.5,3798.3,2.28202523]
[1641346541631,0.0022737,3798.4,3798.2,0.65827]
[1641346542029,0.00170527,3798.3,3798.2,0.65827]
[1641346546411,0.01199133,3798.3,3798.2,0.65827]
[1641346550635,0.65835,3799.0,3798.0,3.17629]
[1641346550636,0.65835,3799.0,3798.7,1.3166559]
[1641346551085,0.00341054,3798.9,3798.7,1.3166559]
[1641346551487,0.00284212,3798.8,3798.7,1.3166559]
[1641346555128,0.38484212,3798.8,3798.7,1.3166559]
[1641346561992,0.38484212,3798.8,3798.7,0.3166559]
[1641346562828,0.38484212,3798.8,3798.4,0.6584059]
[1641346563029,0.65847,3798.6,3797.9,4.009165]
[1641346563229,0.65847,3798.6,3797.9,2.633685]
[1641346563230,0.382,3798.5,3797.9,2.633685]
[1641346563436,0.38313685,3798.5,3798.1,0.00113685]
[1641346563632,0.38313685,3798.5,3798.0,0.00170527]
[1641346564033,0.38313685,3798.5,3798.1,0.6584644]
[1641346564232,0.6585,3798.3,3798.0,0.00170527]
[1641346564433,1.0405,3798.3,3798.0,0.00170527]
[1641346564637,1.0405,3798.3,3797.8,0.00284212]
[1641346565636,1.0405,3798.3,3798.0,0.65845]
[1641346565874,1.0405,3798.3,3798.1,0.6584406]
[1641346566078,1.0405,3798.3,3798.1,0.65957744]
[1641346566477,0.382,3798.3,3798.1,0.65957744]
[1641346569850,0.382,3798.3,3798.1,0.00113684]
[1641346570251,0.382,3798.3,3798.0,0.00170527]
[1641346570651,0.382,3798.3,3798.1,0.6584599]
[1641346572060,0.01028618,3798.2,3798.1,0.6584599]
[1641346572462,0.01028618,3798.2,3798.1,6.22319625]
[1641346573056,0.01028618,3798.2,3798.1,2.77319625]
[1641346574500,0.01028618,3798.2,3798.1,0.65959674]
[1641346598184,0.39228618,3798.2,3798.1,0.65959674]
[1641346598382,0.69228618,3798.2,3798.1,0.65959674]
[1641346598582,0.39228618,3798.2,3798.1,0.65959674]
[1641346600728,0.69228618,3798.2,3798.1,0.65959674]
[1641346601329,0.39228618,3798.2,3798.1,0.65959674]
[1641346602229,0.46830332,3798.3,3798.1,0.65959674]
[1641346602430,0.46830332,3798.3,3798.1,0.6584599]
[1641346602431,0.382,3798.2,3798.1,0.6584599]
[1641346608537,0.38579529,3798.3,3798.1,0.6584599]
[1641346608737,0.382,3798.2,3798.1,0.6584599]
[1641346610138,0.38579529,3798.3,3798.1,0.6584599]
[1641346610337,0.76779529,3798.3,3798.1,0.6584599]
[1641346610872,2.64402343,3798.2,3797.6,2.6339887]
[1641346611079,1.04057,3798.1,3797.6,2.6339887]
[1641346611277,2.23829588,3798.0,3797.7,0.00341054]
[1641346611478,0.382,3797.9,3797.7,0.00341054]
[1641346612979,1.04057,3797.9,3797.7,0.00341054]
[1641346613182,1.34057,3797.9,3797.7,0.00341054]
[1641346613882,1.04057,3797.9,3797.7,0.00341054]
[1641346619681,1.04057,3797.9,3797.7,1.32046204]
[1641346620079,1.04057,3797.9,3797.8,0.00284212]